fUSD/lending_fUSD_20260218
["ID","MTS","AMOUNT","RATE_DAILY","PERIOD"]
[405953412,1771443045955,-500.0,0.00017,7]
[405953413,1771443045965,-500.0,0.00017,7]
[405953414,1771443045974,-500.0,0.00017,7]
[405953415,1771443045983,-500.0,0.00017,7]
[405953416,1771443045993,-500.0,0.00017,7]
[405953417,1771443046002,-500.0,0.00017,7]
[405953418,1771443046011,-500.0,0.00017,7]
[405953419,1771443046020,-532.48,0.00017,7]
[405953420,1771443046029,-500.0,0.00017,7]
[405953421,1771443046039,-551.21,0.00017,7]
[405953422,1771443046048,-500.0,0.00017,7]
[405953423,1771443046057,-500.0,0.00017,7]
[405953424,1771443046066,-500.0,0.00017,7]
[405953425,1771443046075,-500.0,0.00017,7]
[405953426,1771443046084,-500.0,0.00017,7]
[405953427,1771443046093,-500.0,0.00017,7]
[405953428,1771443046103,-500.0,0.00017,7]
[405953429,1771443046112,-500.0,0.00017,7]
[405953430,1771443046121,-500.0,0.00017,7]
[405953431,1771443046131,-500.0,0.00017,7]
[405953432,1771443046140,-500.0,0.00017,7]
[405953433,1771443046151,-500.0,0.00017,7]
[405953434,1771443046161,-500.0,0.00017,7]
[405953435,1771443046171,-500.0,0.00017,7]
[405953436,1771443046183,-500.0,0.00017,7]
[405953437,1771443046193,-500.0,0.00017,7]
[405953438,1771443046202,-500.0,0.00017,7]
[405953440,1771443046211,-500.0,0.00017,7]
[405953442,1771443046222,-500.0,0.00017,7]
[405953443,1771443046230,-500.0,0.00017,7]
[405953444,1771443046240,-500.0,0.00017,7]
[405953445,1771443046250,-500.0,0.00017,7]
[405953446,1771443046261,-500.0,0.00017,7]
[405953447,1771443046270,-500.0,0.00017,7]
[405953448,1771443046280,-500.0,0.00017,7]
[405953449,1771443046289,-500.0,0.00017,7]
[405953450,1771443046298,-500.0,0.00017,7]
[405953451,1771443046307,-500.0,0.00017,7]
[405953452,1771443046316,-500.0,0.00017,7]
[405953454,1771443046325,-500.0,0.00017,7]
[405953456,1771443046334,-500.0,0.00017,7]
[405953457,1771443046343,-500.0,0.00017,7]
[405953458,1771443046353,-500.0,0.00017,7]
[405953459,1771443046363,-500.0,0.00017,7]
[405953460,1771443046372,-500.0,0.00017,7]
[405953461,1771443046381,-500.0,0.00017,7]
[405953462,1771443046390,-500.0,0.00017,7]
[405953463,1771443046399,-500.0,0.00017,7]
[405953464,1771443046409,-500.0,0.00017,7]
[405953465,1771443046418,-442.7,0.00017,7]
[405953466,1771443046427,-500.0,0.00017,7]
[405953467,1771443046435,-500.0,0.00017,7]
[405953468,1771443046445,-500.0,0.00017,7]
[405953469,1771443046453,-500.0,0.00017,7]
[405953470,1771443046462,-500.0,0.00017,7]
[405953471,1771443046471,-500.0,0.00017,7]
[405953472,1771443046481,-500.0,0.00017,7]
[405953473,1771443046490,-500.0,0.00017,7]
[405953474,1771443046499,-500.0,0.00017,7]
[405953475,1771443046508,-500.0,0.00017,7]
[405953476,1771443046518,-500.0,0.00017,7]
[405953477,1771443046527,-500.0,0.00017,7]
[405953478,1771443046536,-500.0,0.00017,7]
[405953479,1771443046546,-500.0,0.00017,7]
[405953480,1771443046555,-500.0,0.00017,7]
[405953481,1771443046565,-500.0,0.00017,7]
[405953482,1771443046575,-500.0,0.00017,7]
[405953483,1771443046585,-500.0,0.00017,7]
[405953484,1771443046594,-500.0,0.00017,7]
[405953485,1771443046604,-500.0,0.00017,7]
[405953486,1771443046613,-500.0,0.00017,7]
[405953487,1771443046622,-500.0,0.00017,7]
[405953488,1771443046632,-500.0,0.00017,7]
[405953489,1771443046641,-235.28,0.00017,7]
[405953490,1771443046651,-110675.57815277,0.00017,2]
[405953491,1771443046664,-16286.65217675,0.00017,2]
[405953492,1771443046673,-300.0,0.00017,2]
[405953493,1771443046683,-1000.0,0.00017004,2]
[405953494,1771443046692,-150.0,0.00017006,2]
[405953495,1771443046702,-1000.0,0.00017039,2]
[405953496,1771443046712,-150.0,0.00017041,2]
[405953497,1771443046722,-150.0,0.00017051,2]
[405953498,1771443046731,-150.0,0.00017052,2]
[405953499,1771443046740,-150.0,0.00017062,2]
[405953500,1771443046750,-1000.0,0.00017065,2]
[405953501,1771443046760,-150.0,0.0001709,2]
[405953502,1771443046770,-300.0,0.00017099,2]
[405953503,1771443046779,-300.0,0.000171,2]
[405953504,1771443046788,-57512.732845,0.000171,2]
[405953505,1771443046797,-856.120637,0.000171,2]
[405953506,1771443046807,-15647.56557,0.000171,2]
[405953507,1771443046816,-3402.0,0.00017101,2]
[405953508,1771443046825,-1000.0,0.00017102,2]
[405953509,1771443046834,-296.0,0.00017108,2]
[405953510,1771443046844,-1000.0,0.00017123,2]
[405953511,1771443046854,-1000.0,0.00017131,2]
[405953512,1771443046864,-1000.0,0.00017142,2]
[405953513,1771443046874,-1000.0,0.00017143,2]
[405953514,1771443046884,-1000.0,0.00017152,2]
[405953515,1771443046894,-1000.0,0.00017162,2]
[405953516,1771443046903,-1000.0,0.00017177,2]
[405953517,1771443046912,-481.69102307,0.00017198,2]
[405953518,1771443046922,-150.0,0.00017216,2]
[405953519,1771443046932,-1000.0,0.00017218,2]
[405953520,1771443046941,-150.0,0.0001722,2]
[405953521,1771443046951,-150.0,0.00017225,2]
[405953522,1771443046962,-150.0,0.0001723,2]
[405953523,1771443046971,-1000.0,0.00017239,2]
[405953524,1771443046980,-350.0,0.00017263,2]
[405953525,1771443046990,-1000.0,0.00017266,2]
[405953526,1771443046999,-1000.0,0.00017277,2]
[405953527,1771443047010,-1000.0,0.00017283,2]
[405953528,1771443047019,-166.66,0.00017284,2]
[405953529,1771443047028,-150.0,0.00017293,2]
[405953530,1771443047039,-150.0,0.00017307,2]
[405953531,1771443047048,-340.0,0.00017308,2]
[405953532,1771443047059,-1000.0,0.00017308,2]
[405953533,1771443047068,-150.0,0.00017309,2]
[405953534,1771443047077,-150.0,0.00017321,2]
[405953535,1771443047087,-150.0,0.00017343,2]
[405953536,1771443047098,-270.0455652,0.0001735,2]
[405953537,1771443047109,-1000.0,0.00017377,2]
[405953538,1771443047118,-1000.0,0.00017381,2]
[405953539,1771443047127,-1000.0,0.00017388,2]
[405953540,1771443047136,-1000.0,0.00017391,2]
[405953541,1771443047146,-150.0,0.00017395,2]
[405953542,1771443047155,-1000.0,0.0001742,2]
[405953543,1771443047164,-150.0,0.00017425,2]
[405953544,1771443047173,-1000.0,0.00017455,2]
[405953545,1771443047187,-150.0,0.00017461,2]
[405953546,1771443047196,-1000.0,0.00017465,2]
[405953547,1771443047205,-150.0,0.00017471,2]
[405953548,1771443047215,-1000.0,0.00017479,2]
[405953549,1771443047225,-332.19669926,0.00017486,2]
[405953550,1771443047235,-4019.991,0.00017487,2]
[405953551,1771443047244,-270.352,0.00017487,2]
[405953552,1771443047254,-150.0,0.00017487,2]
[405953553,1771443047264,-150.0,0.00017504,2]
[405953554,1771443047273,-150.0,0.00017566,2]
[405953555,1771443047282,-150.0,0.00017568,2]
[405953556,1771443047291,-150.0,0.00017579,2]
[405953557,1771443047300,-150.0,0.00017582,2]
[405953558,1771443047310,-1000.0,0.00017582,2]
[405953559,1771443047319,-481.69102307,0.00017589,2]
[405953560,1771443047328,-328.88612312,0.000176,14]
[405953561,1771443047337,-1000.0,0.0001761,2]
[405953562,1771443047346,-150.0,0.00017614,2]
[405953563,1771443047357,-317.60865075,0.00017619,2]
[405953564,1771443047366,-150.0,0.00017619,2]
[405953565,1771443047376,-150.0,0.00017623,2]
[405953566,1771443047385,-1000.0,0.00017628,2]
[405953567,1771443047394,-150.0,0.00017631,2]
[405953568,1771443047403,-4207.67642787,0.0001764,2]
[405953569,1771443047412,-150.0,0.00017641,2]
[405953570,1771443047421,-1000.0,0.00017661,2]
[405953571,1771443047430,-150.0,0.00017662,2]
[405953572,1771443047440,-150.0,0.00017664,2]
[405953573,1771443047450,-150.0,0.00017673,2]
[405953574,1771443047459,-150.0,0.00017685,2]
[405953575,1771443047468,-150.0,0.00017693,2]
[405953576,1771443047478,-616.8,0.00017699,2]
[405953577,1771443047487,-794.28,0.00017699,2]
[405953578,1771443047496,-3400.0,0.000177,6]
[405953579,1771443047505,-176.04753717,0.00017727,2]
[405953580,1771443047514,-1000.0,0.0001773,2]
[405953581,1771443047524,-1000.0,0.00017738,2]
[405953582,1771443047533,-1000.0,0.00017747,2]
[405953583,1771443047543,-150.0,0.0001775,2]
[405953584,1771443047552,-1000.0,0.00017791,2]
[405953585,1771443047561,-150.0,0.00017796,2]
[405953586,1771443047571,-350.0,0.00017797,3]
[405953587,1771443047580,-3400.0,0.000178,6]
[405953588,1771443047595,-616.0,0.00017808,2]
[405953589,1771443047610,-1000.0,0.00017808,2]
[405953590,1771443047623,-800.0,0.00017808,2]
[405953591,1771443047634,-150.0,0.00017813,2]
[405953592,1771443047645,-1000.0,0.00017821,2]
[405953593,1771443047656,-1000.0,0.00017828,2]
[405953594,1771443047669,-166.66,0.00017836,2]
[405953595,1771443047683,-150.0,0.00017839,2]
[405953596,1771443047697,-1000.0,0.00017839,2]
[405953597,1771443047708,-150.0,0.00017843,2]
[405953598,1771443047720,-436.0,0.00017849,3]
[405953599,1771443047733,-167.0,0.00017849,3]
[405953600,1771443047744,-150.0,0.0001785,2]
[405953601,1771443047757,-200.0,0.00017855,2]
[405953602,1771443047769,-616.0,0.00017863,2]
[405953603,1771443047781,-150.0,0.00017866,2]
[405953604,1771443047794,-350.0,0.00017879,2]
[405953605,1771443047806,-1000.0,0.00017883,2]
[405953606,1771443047818,-150.0,0.00017893,2]
[405953607,1771443047831,-280.03725112,0.00017898,2]
[405953608,1771443047844,-3400.0,0.000179,6]
[405953609,1771443047856,-1429.9438895,0.000179,2]
[405953610,1771443047868,-4648.7279991,0.000179,2]
[405953611,1771443047879,-517.34793536,0.000179,2]
[405953612,1771443047893,-507.0,0.00017904,3]
[405953613,1771443047905,-150.0,0.00017908,2]
[405953614,1771443047920,-616.0,0.00017918,2]
[405953615,1771443047931,-1000.0,0.00017927,2]
[405953616,1771443047942,-500.0,0.00017952,2]
[405953617,1771443047955,-656.0,0.00017952,2]
[405953618,1771443047966,-500.0,0.00017952,2]
[405953619,1771443047979,-500.0,0.00017952,2]
[405953620,1771443047990,-500.0,0.00017952,2]
[405953621,1771443048003,-500.0,0.00017952,2]
[405953622,1771443048015,-500.0,0.00017952,2]
[405953623,1771443048029,-150.0,0.00017966,2]
[405953624,1771443048040,-300.0,0.0001797,2]
[405953625,1771443048051,-400.0,0.0001797,2]
[405953626,1771443048064,-300.0,0.0001797,2]
[405953627,1771443048078,-400.0,0.0001797,2]
[405953628,1771443048092,-400.0,0.0001797,2]
[405953629,1771443048104,-400.0,0.0001797,2]
[405953630,1771443048115,-602.41999999,0.0001797,2]
[405953631,1771443048127,-1000.0,0.0001797,2]
[405953632,1771443048139,-150.0,0.00017971,2]
[405953633,1771443048151,-616.0,0.00017972,2]
[405953634,1771443048163,-168.63570163,0.00017973,2]
[405953635,1771443048173,-245.86778969,0.00017973,2]
[405953636,1771443048191,-184.10682969,0.00017973,2]
[405953637,1771443048203,-162.86870142,0.00017973,2]
[405953638,1771443048216,-166.81542431,0.00017973,2]
[405953639,1771443048233,-307.32831336,0.00017973,2]
[405953640,1771443048243,-503.24422827,0.00017973,2]
[405953641,1771443048254,-500.0,0.00017973,2]
[405953642,1771443048264,-500.0,0.00017973,2]
[405953643,1771443048273,-500.0,0.00017973,2]
[405953644,1771443048283,-500.27840167,0.00017973,2]
[405953645,1771443048300,-502.89755561,0.00017973,2]
[405953646,1771443048311,-500.0,0.00017973,2]
[405953647,1771443048324,-500.0,0.00017973,2]
[405953648,1771443048334,-500.0,0.00017973,2]
[405953649,1771443048346,-165.19851393,0.00017973,2]
[405953650,1771443048356,-500.0,0.00017973,2]
[405953651,1771443048367,-263.72762291,0.00017973,2]
[405953652,1771443048378,-500.0,0.00017973,2]
[405953653,1771443048390,-500.0,0.00017973,2]
[405953654,1771443048400,-493.23699365,0.00017973,2]
[405953655,1771443048411,-500.0,0.00017973,2]
[405953656,1771443048421,-500.0,0.00017973,2]
[405953657,1771443048431,-500.0,0.00017973,2]
[405953658,1771443048441,-230.21037703,0.00017973,2]
[405953659,1771443048452,-500.0,0.00017973,2]
[405953660,1771443048466,-500.0,0.00017973,2]
[405953661,1771443048477,-502.35320902,0.00017973,2]
[405953662,1771443048489,-164.39891665,0.00017973,2]
[405953663,1771443048500,-500.87268816,0.00017973,2]
[405953664,1771443048513,-500.0,0.00017973,2]
[405953665,1771443048524,-500.0,0.00017973,2]
[405953666,1771443048535,-500.0,0.00017973,2]
[405953667,1771443048548,-500.0,0.00017973,2]
[405953668,1771443048558,-500.0,0.00017973,2]
[405953669,1771443048570,-167.33946284,0.00017973,2]
[405953670,1771443048581,-500.0,0.00017973,2]
[405953671,1771443048593,-1000.0,0.00017975,2]
[405953672,1771443048606,-481.69102307,0.00017979,2]
[405953673,1771443048617,-1000.0,0.00017988,2]
[405953674,1771443048628,-1723.91274362,0.0001799,2]
[405953675,1771443048639,-1723.91274362,0.0001799,2]
[405953676,1771443048650,-150.0,0.00017995,2]
[405953677,1771443048662,-500.0,0.00017998,2]
[405953678,1771443048672,-656.0,0.00017998,2]
[405953679,1771443048683,-500.0,0.00017998,2]
[405953680,1771443048694,-500.0,0.00017998,2]
[405953681,1771443048704,-551.5455423,0.00017998,2]
[405953682,1771443048715,-616.8,0.00017998,2]
[405953683,1771443048725,-500.0,0.00017998,2]
[405953684,1771443048735,-794.28,0.00017998,2]
[405953685,1771443048746,-464.29440353,0.00017999,2]
[405953686,1771443048756,-500.0,0.00017999,2]
[405953687,1771443048767,-500.0,0.00017999,2]
[405953688,1771443048777,-500.0,0.00017999,2]
[405953689,1771443048787,-500.0,0.00017999,2]
[405953690,1771443048797,-500.0,0.00017999,2]
[405953691,1771443048808,-500.0,0.00017999,2]
[405953692,1771443048818,-500.0,0.00017999,2]
[405953693,1771443048828,-500.0,0.00017999,2]
[405953694,1771443048838,-500.0,0.00017999,2]
[405953695,1771443048849,-500.0,0.00017999,2]
[405953696,1771443048861,-500.0,0.00017999,2]
[405953697,1771443048872,-500.0,0.00017999,2]
[405953698,1771443048883,-500.0,0.00017999,2]
[405953699,1771443048893,-500.0,0.00017999,2]
[405953700,1771443048905,-500.0,0.00017999,2]
[405953701,1771443048916,-500.0,0.00017999,2]
[405953702,1771443048926,-372.32,0.00017999,2]
[405953703,1771443048936,-656.0,0.00017999,2]
[405953704,1771443048947,-656.0,0.00017999,2]
[405953705,1771443048958,-656.0,0.00017999,2]
[405953706,1771443048968,-656.0,0.00017999,2]
[405953707,1771443048979,-656.0,0.00017999,2]
[405953708,1771443048990,-656.0,0.00017999,2]
[405953709,1771443049001,-656.0,0.00017999,2]
[405953710,1771443049012,-656.0,0.00017999,2]
[405953711,1771443049022,-656.0,0.00017999,2]
[405953712,1771443049034,-656.0,0.00017999,2]
[405953713,1771443049044,-656.0,0.00017999,2]
[405953714,1771443049055,-656.0,0.00017999,2]
[405953715,1771443049066,-656.0,0.00017999,2]
[405953716,1771443049075,-656.0,0.00017999,2]
[405953717,1771443049084,-656.1,0.00017999,2]
[405953718,1771443049093,-500.0,0.00017999,2]
[405953719,1771443049104,-500.0,0.00017999,2]
[405953720,1771443049112,-500.0,0.00017999,2]
[405953721,1771443049121,-500.0,0.00017999,2]
[405953722,1771443049130,-500.0,0.00017999,2]
[405953723,1771443049139,-500.0,0.00017999,2]
[405953724,1771443049148,-500.0,0.00017999,2]
[405953725,1771443049157,-500.0,0.00017999,2]
[405953726,1771443049166,-500.0,0.00017999,2]
[405953727,1771443049176,-635.95417002,0.00017999,2]
[405953728,1771443049188,-500.0,0.00017999,2]
[405953729,1771443049197,-500.0,0.00017999,2]
[405953730,1771443049206,-500.0,0.00017999,2]
[405953731,1771443049215,-500.0,0.00017999,2]
[405953732,1771443049226,-500.0,0.00017999,2]
[405953733,1771443049235,-500.0,0.00017999,2]
[405953734,1771443049244,-500.0,0.00017999,2]
[405953735,1771443049253,-216.12,0.00017999,2]
[405953736,1771443049262,-616.8,0.00017999,2]
[405953737,1771443049271,-616.8,0.00017999,2]
[405953738,1771443049280,-616.8,0.00017999,2]
[405953739,1771443049289,-616.8,0.00017999,2]
[405953740,1771443049298,-616.8,0.00017999,2]
[405953741,1771443049308,-616.8,0.00017999,2]
[405953742,1771443049317,-616.8,0.00017999,2]
[405953743,1771443049326,-616.8,0.00017999,2]
[405953744,1771443049335,-616.8,0.00017999,2]
[405953745,1771443049344,-616.8,0.00017999,2]
[405953746,1771443049353,-616.8,0.00017999,2]
[405953747,1771443049362,-616.8,0.00017999,2]
[405953748,1771443049371,-616.8,0.00017999,2]
[405953749,1771443049380,-616.8,0.00017999,2]
[405953750,1771443049389,-616.8,0.00017999,2]
[405953751,1771443049398,-616.8,0.00017999,2]
[405953752,1771443049407,-500.0,0.00017999,2]
[405953753,1771443049416,-616.8,0.00017999,2]
[405953754,1771443049425,-500.0,0.00017999,2]
[405953755,1771443049434,-616.8,0.00017999,2]
[405953756,1771443049443,-500.0,0.00017999,2]
[405953757,1771443049451,-616.8,0.00017999,2]
[405953758,1771443049461,-500.0,0.00017999,2]
[405953759,1771443049470,-616.8,0.00017999,2]
[405953760,1771443049479,-500.0,0.00017999,2]
[405953761,1771443049488,-616.80047002,0.00017999,2]
[405953762,1771443049497,-500.0,0.00017999,2]
[405953763,1771443049506,-500.0,0.00017999,2]
[405953764,1771443049515,-500.0,0.00017999,2]
[405953765,1771443049524,-500.0,0.00017999,2]
[405953766,1771443049533,-500.0,0.00017999,2]
[405953767,1771443049543,-500.0,0.00017999,2]
[405953768,1771443049552,-620.1235705,0.00017999,2]
[405953769,1771443049561,-794.28,0.00017999,2]
[405953770,1771443049570,-133.62771845,0.00017999,2]
[405953771,1771443049585,-660.65228155,0.00017999,2]
[405953772,1771443049594,-794.28,0.00017999,2]
[405953773,1771443049603,-794.28,0.00017999,2]
[405953774,1771443049612,-794.28,0.00017999,2]
[405953775,1771443049622,-794.28,0.00017999,2]
[405953776,1771443049631,-794.28,0.00017999,2]
[405953777,1771443049640,-794.28,0.00017999,2]
[405953778,1771443049649,-794.28,0.00017999,2]
[405953779,1771443049658,-794.28,0.00017999,2]
[405953780,1771443049668,-794.28,0.00017999,2]
[405953781,1771443049677,-794.28,0.00017999,2]
[405953782,1771443049686,-794.28,0.00017999,2]
[405953783,1771443049966,-794.28,0.00017999,2]
[405953784,1771443049984,-794.28,0.00017999,2]
[405953785,1771443050000,-794.28,0.00017999,2]
[405953786,1771443050010,-794.28,0.00017999,2]
[405953787,1771443050019,-794.28,0.00017999,2]
[405953788,1771443050028,-794.28,0.00017999,2]
[405953789,1771443050037,-794.28,0.00017999,2]
[405953790,1771443050046,-794.34,0.00017999,2]
[405953791,1771443050055,-300.0,0.00017999,2]
[405953792,1771443050065,-297.03102847,0.00017999,2]
[405953793,1771443050074,-159.0,0.00018,2]
[405953794,1771443050083,-152.0,0.00018,2]
[405953795,1771443050091,-152.0,0.00018,2]
[405953796,1771443050100,-152.0,0.00018,2]
[405953797,1771443050110,-152.0,0.00018,2]
[405953798,1771443050120,-152.0,0.00018,2]
[405953799,1771443050129,-1508.0,0.00018,2]
[405953800,1771443050138,-156.0,0.00018,2]
[405953801,1771443050146,-1508.0,0.00018,2]
[405953802,1771443050155,-156.0,0.00018,2]
[405953803,1771443050164,-152.0,0.00018,2]
[405953804,1771443050174,-1508.0,0.00018,2]
[405953805,1771443050186,-156.0,0.00018,2]
[405953806,1771443050195,-152.0,0.00018,2]
[405953807,1771443050204,-153.0,0.00018,2]
[405953808,1771443050213,-1508.0,0.00018,2]
[405953809,1771443050222,-156.0,0.00018,2]
[405953810,1771443050234,-152.0,0.00018,2]
[405953811,1771443050243,-153.0,0.00018,2]
[405953812,1771443050252,-1508.0,0.00018,2]
[405953813,1771443050263,-156.0,0.00018,2]
[405953814,1771443050273,-152.0,0.00018,2]
[405953815,1771443050282,-153.0,0.00018,2]
[405953816,1771443050291,-1508.0,0.00018,2]
[405953817,1771443050301,-156.0,0.00018,2]
[405953818,1771443050310,-152.0,0.00018,2]
[405953819,1771443050319,-153.0,0.00018,2]
[405953820,1771443050329,-1508.0,0.00018,2]
[405953821,1771443050338,-156.0,0.00018,2]
[405953822,1771443050348,-153.0,0.00018,2]
[405953823,1771443050358,-1508.0,0.00018,2]
[405953824,1771443050368,-152.0,0.00018,2]
[405953825,1771443050377,-156.0,0.00018,2]
[405953826,1771443050386,-153.0,0.00018,2]
[405953827,1771443050395,-1508.0,0.00018,2]
[405953828,1771443050404,-156.0,0.00018,2]
[405953829,1771443050414,-152.0,0.00018,2]
[405953830,1771443050423,-153.0,0.00018,2]
[405953831,1771443050432,-1508.0,0.00018,2]
[405953832,1771443050441,-152.0,0.00018,2]
[405953833,1771443050450,-201.34477627,0.00018,2]
[405953834,1771443050459,-153.0,0.00018,2]
[405953835,1771443050469,-1508.0,0.00018,2]
[405953836,1771443050479,-152.0,0.00018,2]
[405953837,1771443050488,-153.0,0.00018,2]
[405953838,1771443050497,-152.0,0.00018,2]
[405953839,1771443050506,-1508.0,0.00018,2]
[405953840,1771443050515,-153.0,0.00018,2]
[405953841,1771443050524,-152.0,0.00018,2]
[405953842,1771443050534,-1508.0,0.00018,2]
[405953843,1771443050543,-153.0,0.00018,2]
[405953844,1771443050552,-152.0,0.00018,2]
[405953845,1771443050561,-152.0,0.00018,2]
[405953846,1771443050571,-1508.0,0.00018,2]
[405953847,1771443050580,-153.0,0.00018,2]
[405953848,1771443050589,-152.0,0.00018,2]
[405953849,1771443050598,-152.0,0.00018,2]
[405953850,1771443050608,-1508.0,0.00018,2]
[405953851,1771443050618,-153.0,0.00018,2]
[405953852,1771443050627,-152.0,0.00018,2]
[405953853,1771443050636,-1508.0,0.00018,2]
[405953854,1771443050646,-152.0,0.00018,2]
[405953855,1771443050655,-153.0,0.00018,2]
[405953856,1771443050664,-152.0,0.00018,2]
[405953857,1771443050673,-1508.0,0.00018,2]
[405953858,1771443050682,-152.0,0.00018,2]
[405953859,1771443050691,-153.0,0.00018,2]
[405953860,1771443050700,-152.0,0.00018,2]
[405953861,1771443050709,-1508.0,0.00018,2]
[405953862,1771443050719,-152.0,0.00018,2]
[405953863,1771443050728,-153.0,0.00018,2]
[405953864,1771443050737,-152.0,0.00018,2]
[405953865,1771443050746,-152.0,0.00018,2]
[405953866,1771443050755,-1508.0,0.00018,2]
[405953867,1771443050764,-153.0,0.00018,2]
[405953868,1771443050774,-152.0,0.00018,2]
[405953869,1771443050783,-152.0,0.00018,2]
[405953870,1771443050792,-1508.0,0.00018,2]
[405953871,1771443050800,-152.0,0.00018,2]
[405953872,1771443050809,-152.0,0.00018,2]
[405953873,1771443050819,-1508.0,0.00018,2]
[405953874,1771443050828,-1508.0,0.00018,2]
[405953875,1771443050838,-152.0,0.00018,2]
[405953876,1771443050847,-152.0,0.00018,2]
[405953877,1771443050856,-152.0,0.00018,2]
[405953878,1771443050865,-152.0,0.00018,2]
[405953879,1771443050875,-152.0,0.00018,2]
[405953880,1771443050885,-152.0,0.00018,2]
[405953881,1771443050894,-152.0,0.00018,2]
[405953882,1771443050903,-500.0,0.00018,7]
[405953883,1771443050912,-311746.72130353,0.00018,2]
[405953884,1771443050925,-1254.41808677,0.00018,2]
[405953885,1771443051406,-500.0,9e-05,3]
[405953886,1771443051415,-255.81419352,9.151e-05,2]
[405953887,1771443051427,-184.18580648,9.151e-05,2]
[405953888,1771443051438,-74.41419352,9.205e-05,2]
[405953889,1771443051450,-365.58580648,9.205e-05,2]
[405953890,1771443051459,-18.15019352,9.26e-05,2]
[405953891,1771443051471,-412.01127561,9.26e-05,2]
[405953892,1771443051482,-9.83853087,9.26e-05,2]
[405953893,1771443051492,-440.0,9.315e-05,2]
[405953894,1771443051501,-1100.0,0.000108,3]
[405953895,1771443051512,-151.38,0.00013699,2]
[405953896,1771443051521,-6203.59064363,0.00018,2]
[405953897,1771443051605,-209.5999999,0.00018,2]
[405953898,1771443051676,-389.58,9.37e-05,2]
[405953899,1771443051917,-50.42,9.37e-05,2]
[405953900,1771443051927,-440.0,9.424e-05,2]
[405953901,1771443051937,-456.0,9.479e-05,2]
[405953902,1771443051946,-1700.0,0.000109,3]
[405953903,1771443051955,-756.95,0.00013699,2]
[405953904,1771443051966,-1000.0,0.00014636,2]
[405953905,1771443051975,-1000.0,0.00015188,2]
[405953906,1771443051984,-1000.0,0.0001529,2]
[405953907,1771443051993,-1000.0,0.0001552,2]
[405953908,1771443052002,-1000.0,0.0001573,2]
[405953909,1771443052012,-1000.0,0.00015858,2]
[405953910,1771443052022,-5973.0,0.00015886,2]
[405953911,1771443052031,-2200.0,0.000159,5]
[405953912,1771443052040,-2800.0,0.000176,6]
[405953913,1771443052049,-1000.0,0.00017703,2]
[405953914,1771443052058,-1000.0,0.00017926,2]
[405953915,1771443052067,-2251.8606043,0.00018,2]